[Event "1st Kallai Gabor Memorial Blitz 2022"]
[Site "Budapest"]
[Date "2022.12.01"]
[Round "8.5"]
[White "Horvath, Csaba"]
[Black "Borhy, Marcell"]
[Result "0-1"]
[ECO "B23"]
[WhiteElo "2502"]
[BlackElo "2407"]
[Annotator "TA"]
[PlyCount "88"]
[EventDate "2022.12.01"]
[EventType "blitz"]
[EventCountry "HUN"]
[SourceTitle "playchess.com"]
[Source "ChessBase"]
[SourceQuality "1"]
[TimeControl "300+3"]

{[%evp 10,88,18,7,13,14,20,7,12,-3,86,8,31,23,14,23,93,75,93,60,163,171,142,41,46,38,27,0,0,0,0,-98,-93,-212,-79,-181,-181,-165,-166,-295,-277,-321,-315,-301,-187,-172,-181,-185,-35,-25,0,0,0,10,129,120,789,785,1857,569,546,541,460,209,451,235,256,54,948,46,417,131,1313,1125,1796,1644,1131,0,825,-1265,-1247]} 1. e4 {[%emt 0:00:04]} c5 {[%emt 0:00:04]} 2. Nc3 {[%emt 0:00:02]} a6 {[%emt 0:00:03]} 3. g3 {[%emt 0:00:24]} b5 {[%emt 0:00:12]} 4. Bg2 {[%emt 0:00:01]} Bb7 {[%emt 0:00:01]} 5. d3 {[%emt 0:00:01]} e6 {[%emt 0:00:06]} 6. Nh3 {[%emt 0:00:02]} Nf6 {[%emt 0:00:05] B23: Closed Sicilian: Lines without g3.} 7. O-O {[%emt 0:00:05]} Qc7 {[%emt 0:00:35]} 8. f4 {[%emt 0:00:11] [#]} b4 $146 {[%emt 0:00:05] Prevents e5. The position is equal.} ({Predecessor:} 8... Be7 9. e5 Bxg2 10. Kxg2 Qc6+ 11. Kg1 Nd5 12. Ne4 f5 13. exf6 Nxf6 14. Qf3 O-O {1-0 (44) Andreikin,D (2688)-Tukhaev,A (2537) Moscow 2012}) 9. Ne2 {[%emt 0:00:02]} d5 {[%emt 0:00:02]} (9... Be7 $11) 10. f5 {[%emt 0:00:12]} (10. e5 $1 $16 {[%cal Re5f6]} Ng4 11. a3) 10... exf5 {[%emt 0:00:14]} 11. exd5 {[%emt 0:00:12]} Nxd5 {[%emt 0:00:08]} 12. Rxf5 {[%emt 0:00:13]} Qd7 {[%emt 0:00:26]} (12... Ne7 $11 13. Bxb7 (13. Bf4 Qc8 $16) 13... Qxb7) 13. Qf1 $1 $16 {[%emt 0:00:45]} (13. Re5+ $6 Be7 $11) 13... f6 {[%emt 0:00:25]} 14. Be4 {Hoping for Qf3.} g6 {[%emt 0:00:37] [#]} (14... Ne7 $1 $14) 15. Rxd5 $1 $18 {[%emt 0:00:51][%mdl 512]} Bxd5 {[%emt 0:00:05]} 16. Bxd5 {[%emt 0:00:01]} (16. Qf3 $6 Bc6 $11) ({White has to play} 16. Qxf6 $16 Bg7 17. Qf3) 16... Qxd5 $14 {[%emt 0:00:02]} 17. Qxf6 {[%emt 0:00:02]} Rg8 {[%emt 0:00:11][%cal Bh8g8,Bg8g7,Bg7f7][%mdl 32]} 18. Nhf4 {[%emt 0:01:01][%mdl 1024] White has compensation.} (18. Nef4 {feels hotter.} Qc6 19. Qe5+ Kd7 20. Nd5) 18... Qd6 {[%emt 0:00:57]} 19. Qh4 {[%emt 0:00:18][%cal Of4h5]} (19. Ne6 $5 {[%cal Rc1f4]} Be7 20. Ng7+ Kd7 21. Qf3 $15 (21. Qf7 $2 Nc6 $19)) 19... Rg7 {[%emt 0:00:02]} 20. Bd2 {[%emt 0:00:18]} (20. c4 $1 $11) 20... Nc6 {[%emt 0:00:03][%cal Bb8c6,Bc6e5,Be5f3][%mdl 32] And now ...Ne5 would win.} 21. Re1 {[%emt 0:00:07]} (21. c4 $17 {keeps fighting.}) 21... Be7 {[%emt 0:00:10]} (21... Ne5 $19 {and Black stays clearly on top. White must now prevent ...Nf3+.} 22. Nc1 Be7) 22. Qh6 {[%emt 0:00:01]} (22. Qh3 $17 {was the only chance.} Ne5 23. Rf1) 22... Rf7 $19 {[%emt 0:00:01] aiming for ...Ne5.} 23. Qh3 {[%emt 0:00:14]} g5 {[%emt 0:00:24][%cal Bg6g5,Bg5g4,Bg4f3][%mdl 32]} 24. Ne6 {[%emt 0:00:04]} (24. Qh5 $142) 24... Ne5 $1 {[%emt 0:00:02]} 25. Rf1 {[%emt 0:00:45]} g4 {[%emt 0:00:16]} 26. Qh6 {[%emt 0:00:02]} Nf3+ {[%emt 0:00:16]} 27. Rxf3 {[%emt 0:00:02]} gxf3 {[%emt 0:00:03] Dancing on a razor blade.} 28. N2f4 {[%emt 0:00:02] [#]} Kd7 (28... Rc8 $1 $19 {...Qe5 is the strong threat.} 29. Qh5 Qd7 30. Ng7+ Kf8 31. Nge6+ Kg8) 29. Qh3 $15 {[%emt 0:00:03] Threatens to win with Ng5+.} Kc6 {[%emt 0:00:17]} 30. Qh5 {[%emt 0:00:01][%csl LRf3,LRf7]} Rxf4 {[%emt 0:00:16]} 31. Nxf4 {[%emt 0:00:02]} Qd4+ {[%emt 0:00:12]} (31... Rd8 $1 $11 {remains equal.}) 32. Kf1 $16 {[%emt 0:00:00]} Rc8 $2 {[%emt 0:00:09][%mdl 8192]} (32... Rb8 $16) 33. Qxf3+ $18 {[%emt 0:00:03]} Kb5 {[%emt 0:00:01]} 34. c4+ {[%emt 0:00:03]} (34. Qb7+ $142 Ka5 35. Qxc8) 34... Ka5 35. Qb7 $1 {[%emt 0:00:12][%csl LRc8,LRe7]} Qd8 {[%emt 0:00:09]} 36. a3 (36. Nd5 $142 {White wants to mate with b3.} Rb8 37. Qxe7 Qxe7 38. Nxe7) 36... Qc7 $2 {[%emt 0:00:05] Prevents b3.} (36... Ka4 {is a better defense.} 37. axb4 (37. Qxa6+ Kb3 $16) 37... cxb4) 37. Qd5 {[%emt 0:00:08]} (37. axb4+ cxb4 38. Qe4 Bd6 $18) (37. Qe4 $142 Bd6 38. Nd5 Qf7+ 39. Kg1) 37... Ka4 {[%emt 0:00:02]} 38. axb4 $2 {[%emt 0:00:03]} ({White should try} 38. Qh5 $18 Rf8 39. Kg1 (39. Qxh7 Qb7 $11) 39... Rxf4 40. axb4 (40. Bxf4 Bd6 $18) (40. gxf4 Kb3 $16) 40... cxb4 41. Qd1+ (41. Bxf4 Qc5+ 42. Qxc5 Bxc5+ 43. Kf1 Bd4 $14) (41. gxf4 Bc5+ 42. Kf1 Qc6 $16) 41... Ka5 42. Bxf4 (42. gxf4 Bc5+ 43. Kf1 Qg7 $11) 42... Qc5+ 43. Kf1) 38... cxb4 $2 {[%emt 0:00:01][%mdl 8192] [#]} (38... Qc6 $14) 39. Qe6 $2 {[%emt 0:00:12]} ({Only move:} 39. b3+ $1 $18 Kxb3 40. c5+ Ka3 41. Bc1+ Ka4 42. Ne6) 39... Bd6 $2 {[%emt 0:00:07][%mdl 8192]} (39... Bc5 $1 $14) 40. Nd5 $2 {[%emt 0:00:02]} (40. b3+ $1 $18 Ka3 41. Bc1+ Kxb3 42. Qe2) 40... Qc5 $2 {[%emt 0:00:03][%mdl 8192]} (40... Rf8+ $16 41. Kg2 Qf7) 41. Be3 {[%emt 0:00:06]} (41. Bxb4 Rf8+ 42. Kg2 Rf2+ 43. Kh3 Rxh2+ 44. Kxh2 Qf2+ 45. Kh1 Qf1+ 46. Kh2 Qf2+ 47. Kh1 Qf1+ 48. Kh2 Qf2+ $11) 41... Rf8+ {[%emt 0:00:02]} 42. Ke2 {[%emt 0:00:04]} Qc6 {[%emt 0:00:01]} 43. Qe4 $2 {[%emt 0:00:04]} ({White must play} 43. c5 $18 {Nc3+ would kill now.} Rb8 44. cxd6 Qc2+ 45. Bd2) 43... Kb3 {[%mdl 8192] Inhibits Nc3.} (43... Qe8 $11 44. Nf6 (44. Qxh7 Rh8 $17) 44... Qxe4 45. Nxe4 Be7) 44. Bd4 $4 {[%emt 0:00:05][%mdl 8192]} (44. Qxh7 Qe8 45. c5 (45. Kd2 $2 Rh8 $19) 45... Rh8 $17) (44. c5 $18 Qb5 45. cxd6) 44... Re8 {[%emt 0:00:03] What a fight!   Weighted Error Value: White=0.99/Black=0.54} 0-1

[Event "1st Kallai Gabor Memorial Blitz 2022"]
[Site "Budapest"]
[Date "2022.12.01"]
[Round "9.1"]
[White "Bjerre, Jonas Buhl"]
[Black "Kozak, Adam"]
[Result "1-0"]
[ECO "C65"]
[WhiteElo "2622"]
[BlackElo "2538"]
[Annotator "TA"]
[PlyCount "59"]
[EventDate "2022.12.01"]
[EventType "blitz"]
[EventCountry "HUN"]
[SourceTitle "playchess.com"]
[Source "ChessBase"]
[SourceQuality "1"]
[TimeControl "300+3"]

{[%evp 9,59,14,16,24,23,12,14,22,29,18,20,19,30,0,37,-70,-91,-72,-79,-70,-60,-111,-65,-75,-60,-72,-84,-98,-69,-126,-140,-129,-100,-101,-84,-118,-126,-133,-83,-109,-73,-72,26,50,147,144,396,404,381,301,893,863]} 1. e4 {[%emt 0:00:04]} e5 {[%emt 0:00:05]} 2. Nf3 {[%emt 0:00:01]} Nc6 {[%emt 0:00:01]} 3. Bb5 {[%emt 0:00:02]} Nf6 {[%emt 0:00:01]} 4. d3 {[%emt 0:00:01]} Bc5 {[%emt 0:00:03]} 5. c3 {[%emt 0:00:01]} O-O {[%emt 0:00:07]} 6. O-O {[%emt 0:00:02] C65: Ruy Lopez: Berlin Defence (3...Nf6), unusual lines and 4 0-0 Bc5.} Re8 {[%emt 0:00:02]} 7. Bg5 {[%emt 0:00:02]} h6 {[%emt 0:00:30] Prevents d4. 7...a6 is more fashionable.} 8. Bh4 {[%emt 0:00:05] The position is equal.} a6 {[%emt 0:00:01]} 9. Ba4 {[%emt 0:00:02]} Be7 {[%emt 0:00:01]} 10. Nbd2 {[%emt 0:00:15]} d6 {[%emt 0:00:07] [#]} 11. h3 $146 {[%emt 0:00:22]} ({Predecessor:} 11. d4 Bd7 12. Re1 Nh7 13. Bg3 Bf6 14. dxe5 Nxe5 15. Bxd7 Qxd7 16. Qc2 Nxf3+ 17. Nxf3 {½-½ (56) Kobalia,M (2654)-Landa,K (2600) Sochi 2006}) 11... Bd7 {[%emt 0:00:53]} (11... Nh5 $5 {[%cal Re7h4]} 12. Nxe5 dxe5 13. Bxe7 Qxd3 14. Qxh5 Qxd2 $14) 12. d4 {[%emt 0:00:18]} (12. Bc2 $14) 12... exd4 $15 {[%emt 0:00:29]} 13. cxd4 {[%emt 0:00:50] [#]} Nxe4 $1 {[%emt 0:00:05]} 14. Nxe4 {[%emt 0:00:33] Hoping for Bg3.} Bxh4 {[%emt 0:00:03]} 15. Bc2 {[%emt 0:00:01]} (15. Re1 $15) 15... Bf5 {[%emt 0:01:25]} (15... Nb4 $17 {...Nxc2 is the strong threat.} 16. Nc3 Nxc2 17. Qxc2 Bf6) 16. Nc3 {[%emt 0:00:33]} Bxc2 {[%emt 0:00:17]} 17. Qxc2 {[%emt 0:00:01]} Bf6 {[%emt 0:00:03]} 18. Nd5 {[%emt 0:00:13]} Nxd4 {[%emt 0:00:43]} 19. Nxd4 {[%emt 0:00:10]} (19. Nxf6+ $15 Qxf6 20. Nxd4 Qxd4 21. Qxc7) 19... Bxd4 $17 {[%emt 0:00:01]} 20. Qxc7 {[%emt 0:00:01]} Qg5 {[%emt 0:00:26]} ({Stronger than} 20... Bxb2 21. Rab1 Ba3 22. Rb3 $15) 21. Qc4 {[%emt 0:00:24]} Re4 {[%emt 0:00:18][%cal Od4f2] Strongly threatening ...Bxf2+!} 22. Qb3 {[%emt 0:00:35]} b5 {[%emt 0:00:02]} 23. Rad1 {[%emt 0:00:06][%cal Ba1d1,Bd1d3,Bd3f3][%mdl 32]} Bc5 {[%emt 0:00:17]} (23... Rc8 $142 24. Nb4 a5) 24. Rd3 {[%emt 0:00:09]} Re2 {[%emt 0:00:08]} 25. Rf3 {[%emt 0:00:03]} Rf8 {[%emt 0:00:04]} (25... Rae8 $17) 26. Nf6+ $1 $11 {[%emt 0:00:14][%mdl 64] [#]} Kh8 {[%emt 0:00:05]} ({Black should play} 26... gxf6 $14 27. Rg3 Re4) 27. Qd3 $16 {[%emt 0:00:01][%csl Gf6][%cal Rd3h7] Chess con chili.} Qg6 {[%emt 0:00:02][%mdl 8192]} (27... gxf6 $16 28. Qxe2 Rg8) 28. Qxe2 $18 {[%emt 0:00:02]} gxf6 {[%emt 0:00:02]} 29. Qe7 {[%emt 0:00:13]} Kg7 {[%emt 0:00:05]} (29... Rg8 30. Qxf6+ Qxf6 31. Rxf6 Kg7) 30. Kh1 {[%emt 0:00:10] Weighted Error Value: White=0.23 (precise) /Black=0.47} 1-0

[Event "1st Kallai Gabor Memorial Blitz 2022"]
[Site "Budapest"]
[Date "2022.12.01"]
[Round "9.2"]
[White "Motylev, Alexander"]
[Black "Horvath, Csaba"]
[Result "1/2-1/2"]
[ECO "C02"]
[WhiteElo "2628"]
[BlackElo "2502"]
[Annotator "TA"]
[PlyCount "32"]
[EventDate "2022.12.01"]
[EventType "blitz"]
[EventCountry "HUN"]
[SourceTitle "playchess.com"]
[Source "ChessBase"]
[SourceQuality "1"]
[TimeControl "300+3"]

{[%evp 14,19,18,12,13,7,16,12]} 1. e4 {[%emt 0:00:05]} e6 {[%emt 0:00:04]} 2. d4 {[%emt 0:00:03]} d5 {[%emt 0:00:01]} 3. e5 {[%emt 0:00:01]} c5 {[%emt 0:00:00]} 4. c3 {[%emt 0:00:01]} Qb6 {[%emt 0:00:02]} 5. Nf3 {[%emt 0:00:02]} Bd7 {[%emt 0:00:01]} 6. Be2 {[%emt 0:00:01]} cxd4 {[%emt 0:00:04]} 7. cxd4 {[%emt 0:00:02]} Bb5 {[%emt 0:00:01]} 8. Nc3 {[%emt 0:00:02] The position is equal.} Bxe2 {[%emt 0:00:04] C02: French: Advance Variation.} 9. Nxe2 {[%emt 0:00:02]} Nc6 {[%emt 0:00:08]} 10. O-O {[%emt 0:00:07] [#] A rather calm draw.} {Predecessor:} Nge7 $146 11. Ng3 Ng6 12. Nh5 Rc8 13. Be3 Rg8 14. Qe2 Be7 15. Rac1 Qa6 16. Qxa6 bxa6 {½-½ (66) Zhigalko,S (2572)-Bluebaum,M (2670) Chess.com INT 2021} 1/2-1/2

[Event "1st Kallai Gabor Memorial Blitz 2022"]
[Site "Budapest"]
[Date "2022.12.01"]
[Round "9.3"]
[White "Berkes, Ferenc"]
[Black "Gaal, Zsoka"]
[Result "1-0"]
[ECO "A00"]
[WhiteElo "2643"]
[BlackElo "2286"]
[Annotator "TA"]
[PlyCount "85"]
[EventDate "2022.12.01"]
[EventType "blitz"]
[EventCountry "HUN"]
[SourceTitle "playchess.com"]
[Source "ChessBase"]
[SourceQuality "1"]
[TimeControl "300+3"]

{[%evp 9,85,16,6,0,0,-1,-12,0,0,0,27,24,22,18,59,54,58,52,83,80,89,97,106,115,102,90,157,130,162,145,221,215,224,220,211,93,84,45,282,45,90,92,93,91,87,72,72,75,224,224,312,286,464,467,466,465,458,461,471,482,457,466,1009,964,1139,1081,1498,605,4797,3045,29965,29966,5643,5314,29971,29971,6590,6390]} 1. e3 {[%emt 0:00:04]} g6 {[%emt 0:00:11]} 2. d4 {[%emt 0:00:07]} Bg7 {[%emt 0:00:10]} 3. c4 {[%emt 0:00:01]} Nf6 {[%emt 0:00:07]} 4. Nc3 {[%emt 0:00:02]} d5 {[%emt 0:00:01]} 5. cxd5 {[%emt 0:00:05]} Nxd5 {[%emt 0:00:03]} 6. Nxd5 {[%emt 0:00:01] D80: Grünfeld: Unusual White 4th moves and 4 Bg5.} Qxd5 {[%emt 0:00:01]} 7. Ne2 {[%emt 0:00:01]} O-O {[%emt 0:00:10]} 8. Nc3 {[%emt 0:00:01] Prevents c5. The position is equal.} Qd8 {[%emt 0:00:30][%cal Oc7c5] 8...Qd6 deserves study.} 9. Be2 {[%emt 0:00:29]} e5 {[%emt 0:00:25][%cal Re5d4]} 10. d5 {[%emt 0:00:01]} c6 {[%emt 0:00:33]} 11. e4 {[%emt 0:00:02]} Nd7 {[%emt 0:00:08]} 12. dxc6 {[%emt 0:00:06]} bxc6 {[%emt 0:00:01] [#]} 13. Be3 $146 {[%emt 0:00:09]} ({Predecessor:} 13. O-O Nc5 14. Qxd8 Rxd8 15. Bg5 Re8 16. Rac1 Ne6 17. Be3 Nd4 18. Bc4 Be6 19. Bxe6 Rxe6 {½-½ (53) Hovhannisyan,M (2479)-Sadkowsky,D (2255) Brasschaat 2010}) 13... Qa5 {[%emt 0:00:22]} 14. Qa4 {[%emt 0:00:13]} Qxa4 {[%emt 0:00:32]} 15. Nxa4 {[%emt 0:00:01]} f5 {[%emt 0:00:07]} 16. f3 {[%emt 0:00:04][%cal Bf2f3,Bf3e4][%mdl 32]} a5 {[%emt 0:00:35]} 17. O-O-O {[%emt 0:00:05]} Rb8 {[%emt 0:00:12]} (17... fxe4 $142 18. fxe4 Nf6) 18. b3 {[%emt 0:00:26] White is more active.} Re8 {[%emt 0:00:26]} 19. Rd6 {[%emt 0:00:37] aiming for Rhd1.} Nf6 {[%emt 0:00:17]} (19... Bf8 $16 {was necessary.} 20. Rxc6 (20. Bc4+ Kh8 $16) 20... Ba3+ 21. Nb2 fxe4) 20. Nc5 $18 {[%emt 0:00:07]} ({Not} 20. Rxc6 Bd7 21. Rc7 Bxa4 22. bxa4 fxe4 $14) 20... fxe4 {[%emt 0:00:11]} 21. fxe4 {[%emt 0:00:13]} Ng4 {[%emt 0:00:01]} 22. Bxg4 {[%emt 0:00:14]} (22. Bc4+ $18 {and White stays clearly on top.} Kh8 23. Bd2) 22... Bxg4 $16 {[%emt 0:00:01]} 23. h3 {[%emt 0:00:03]} Be2 {[%emt 0:00:26] [#]} ({Black should try} 23... Bf8 $1 $14 24. Rxc6 Be2) 24. Rxc6 $2 {[%emt 0:00:09]} (24. Rd2 $1 $18 {[%cal Rd2e2]}) 24... Rec8 {[%emt 0:00:06]} 25. Rxc8+ {[%emt 0:00:03] White now steadily converts the win.} Rxc8 {[%emt 0:00:01]} 26. Kd2 {[%emt 0:00:02]} Bb5 {[%emt 0:00:03]} 27. Rc1 {[%emt 0:00:19]} Bf8 {[%emt 0:00:01]} 28. a4 {[%emt 0:00:38]} Bc6 {[%emt 0:00:11]} (28... Rd8+ $16 29. Ke1 Be8) 29. Nd3 $18 {[%emt 0:00:12]} Bd6 {[%emt 0:00:24]} 30. Bb6 {[%emt 0:00:05]} Bb7 $2 {[%emt 0:00:08]} (30... Ba3) 31. Rxc8+ {[%emt 0:00:03]} ({Weaker is} 31. Bxa5 Rxc1 32. Nxc1 (32. Kxc1 Bxe4 33. Ne1 Bc6 $14) 32... Bxe4 $14) 31... Bxc8 {[%emt 0:00:01]} 32. Bxa5 {[%emt 0:00:01][%mdl 4096] Endgame KBB-KBN} Bb7 {[%emt 0:00:03]} 33. Ke3 {[%emt 0:00:04]} Kf7 {[%emt 0:00:03]} 34. Bc3 {[%emt 0:00:07]} Kf6 {[%emt 0:00:04]} 35. b4 {[%emt 0:00:08][%cal Bb3b4,Bb4b5][%mdl 32]} Bf8 {[%emt 0:00:02]} (35... g5 $142 36. Nb2 Bc8) 36. b5 {[%emt 0:00:09]} Bd6 {[%emt 0:00:07]} 37. a5 {[%emt 0:00:01]} Bc7 {[%emt 0:00:04]} 38. Nc5 {[%emt 0:00:24]} (38. b6 $142) 38... Ba8 {[%emt 0:00:04]} 39. Bb4 {[%emt 0:00:22] [#] And now b6 would win.} Bd6 {[%emt 0:00:02]} 40. Nd7+ {[%emt 0:00:04]} Ke6 {[%emt 0:00:02]} 41. Bxd6 {[%emt 0:00:01] White threatens Nb6 and mate.} Kxd6 {[%emt 0:00:02]} 42. Nb6 {[%emt 0:00:04]} Bb7 {[%emt 0:00:04]} 43. a6 {[%emt 0:00:03] Weighted Error Value: White=0.37/Black=0.94} 1-0

[Event "1st Kallai Gabor Memorial Blitz 2022"]
[Site "Budapest"]
[Date "2022.12.01"]
[Round "9.4"]
[White "Ruck, Robert"]
[Black "Beliavsky, Alexander G"]
[Result "1-0"]
[ECO "D41"]
[WhiteElo "2537"]
[BlackElo "2487"]
[Annotator "TA"]
[PlyCount "45"]
[EventDate "2022.12.01"]
[EventType "blitz"]
[EventCountry "HUN"]
[SourceTitle "playchess.com"]
[Source "ChessBase"]
[SourceQuality "1"]
[TimeControl "300+3"]

{[%evp 14,45,31,16,29,16,18,-14,0,0,29,37,34,25,43,42,43,51,52,30,31,34,72,27,27,26,158,143,158,154,220,213,380,368]} 1. Nf3 {[%emt 0:00:04]} Nf6 {[%emt 0:00:06]} 2. c4 {[%emt 0:00:01]} e6 {[%emt 0:00:00]} 3. Nc3 {[%emt 0:00:01]} d5 {[%emt 0:00:01]} 4. d4 {[%emt 0:00:01]} c5 {[%emt 0:00:01]} 5. cxd5 {[%emt 0:00:02]} cxd4 {[%emt 0:00:01]} 6. Qxd4 {[%emt 0:00:15]} exd5 {[%emt 0:00:03]} 7. Bg5 {[%emt 0:00:10]} Be7 {[%emt 0:00:05]} 8. e3 {[%emt 0:00:11]} Nc6 {[%emt 0:00:02] D50: Queen's Gambit Declined: Dutch-Peruvian Gambit.} 9. Bb5 {[%emt 0:00:23]} O-O {[%emt 0:00:05]} 10. Bxc6 {[%emt 0:00:04]} bxc6 {[%emt 0:00:01] The position is equal.} 11. O-O {[%emt 0:00:02]} Qb6 {[%emt 0:00:07]} 12. Na4 {[%emt 0:00:08]} Qxd4 {[%emt 0:00:52]} 13. Nxd4 Bd7 {[#] Hoping for ...c5.} 14. Rac1 {[%emt 0:00:03] Prevents c5.} Rfc8 {[%emt 0:00:02] [#] Strongly threatening ...c5.} 15. Bxf6 $146 {[%emt 0:00:24]} ({Predecessor:} 15. Nb3 Rab8 16. f3 h6 17. Bh4 Rb4 18. Bxf6 Bxf6 19. Nac5 Bf5 20. Rf2 Re8 21. a3 Rxb3 22. Nxb3 Rxe3 {1-0 (43) Argishti,D (1996)-Milliken,W (1683) San Francisco 2008}) 15... Bxf6 {[%emt 0:00:04]} 16. Rc2 {[%emt 0:00:05]} Rab8 {[%emt 0:00:24]} 17. Rfc1 {[%emt 0:00:14][%cal Rd4c6]} g6 {[%emt 0:01:18]} 18. b3 {[%emt 0:00:22][%cal Rd4c6]} (18. Nc5 $5 {[%cal Rc5d7]} Be8 19. h3 $14) 18... Bxd4 {[%emt 0:00:19]} 19. exd4 {[%emt 0:00:01]} Be8 {[%emt 0:00:16]} (19... Bf5 $11 20. Rc3 (20. Rxc6 Rxc6 21. Rxc6 Rb4 $11) 20... Rb4) 20. Nc5 $16 {[%emt 0:00:26]} Kf8 {[%emt 0:00:03]} 21. Re1 {[%emt 0:00:05] White is more active.} Rd8 {[%emt 0:00:20]} (21... Ra8 $16 22. Rce2 Rc7) 22. Rce2 $18 {[%emt 0:00:05]} Rb4 $2 {[%emt 0:00:04] [#]} (22... Bd7 23. Re7 Be6 24. Rxa7 (24. Nxe6+ Kxe7 25. Nxd8+ Kxd8 $11) 24... Re8) 23. Rxe8+ $1 {[%emt 0:00:04][%mdl 512] Weighted Error Value: White=0.08 (flawless) /Black=0.37} 1-0

[Event "1st Kallai Gabor Memorial Blitz 2022"]
[Site "Budapest"]
[Date "2022.12.01"]
[Round "9.5"]
[White "Borhy, Marcell"]
[Black "Troff, Kayden"]
[Result "1/2-1/2"]
[ECO "A05"]
[WhiteElo "2407"]
[BlackElo "2483"]
[Annotator "TA"]
[PlyCount "37"]
[EventDate "2022.12.01"]
[EventType "blitz"]
[EventCountry "HUN"]
[SourceTitle "playchess.com"]
[Source "ChessBase"]
[SourceQuality "1"]
[TimeControl "300+3"]

{[%evp 18,24,25,29,34,23,22,23,20]} 1. Nf3 {[%emt 0:00:04]} Nf6 {[%emt 0:00:04]} 2. c4 {[%emt 0:00:02]} g6 {[%emt 0:00:02]} 3. d4 {[%emt 0:00:03]} Bg7 {[%emt 0:00:01]} 4. g3 {[%emt 0:00:02]} O-O {[%emt 0:00:02]} 5. Bg2 {[%emt 0:00:01]} c6 {[%emt 0:00:01]} 6. O-O {[%emt 0:00:07]} d5 {[%emt 0:00:01]} 7. Qa4 {[%emt 0:00:01]} Nbd7 {[%emt 0:00:23]} 8. cxd5 {[%emt 0:00:02]} cxd5 {[%emt 0:00:01]} 9. Nc3 {[%emt 0:00:02]} Nb6 {[%emt 0:00:29]} 10. Qb3 {[%emt 0:00:01]} Ne4 {[%emt 0:00:09] D78: Fianchetto Grünfeld: 6 0-0 c6.} 11. Bf4 {[%emt 0:00:04]} Nxc3 {[%emt 0:00:04]} 12. Qxc3 {[%emt 0:00:38]} Bf5 {[%emt 0:00:17] [#] An uneventful encounter.   Weighted Error Value: White=0.06 (flawless) /Black=0.00 (flawless)} {Predecessor:} 13. Rfc1 $146 Qd7 14. b3 Rfc8 15. Qa5 Bc2 16. Ne5 Qe6 17. Qd2 Bf5 18. a4 g5 19. Be3 {1-0 (68) Movsziszian,K (2473)-Shyam,N (2465) Merida 2022} 1/2-1/2